Cogmind - Beta 11 *** ADVENTURER MODE // 2022.03.25 @ 20:02:18 // Winter2019/RPGLIKE Player: LILY Result: Destroyed by D-53 Grenadier with Mini Grenade Launcher Performance ------------- Evolutions (0) 0 Regions Visited (4) 800 Robots Destroyed (16) 80 Value Destroyed (239) 239 Prototype IDs (1) 20 Alien Tech Used (0) 0 Bonus (300) 300 TOTAL SCORE: 1439 Bonus ------- Aligned with FarCom 300 Cogmind --------- Core Integrity 0/700 Matter 181/300 Energy 160/160 System Corruption 0% Temperature Cool (0) Movement Rolling (80) Location -9/Mines Parts ------- > --- POWER (1) -------- Light Nuclear Core > --- PROPULSION (2) --- Wheel Wheel > --- UTILITY (3) ------ Heat Sink Signal Interpreter Modified TNC > --- WEAPON (3) ------- Assault Rifle Assault Rifle Rocket Launcher > --- INVENTORY (2) ---- Protomatter-28 Shield Generator Peak State ------------ > --- POWER ------------ Light Nuclear Core > --- PROPULSION ------- Wheel Wheel > --- UTILITY ---------- Heat Sink Signal Interpreter Modified TNC > --- WEAPON ----------- Assault Rifle Assault Rifle Rocket Launcher > --- INVENTORY -------- Protomatter [Rating: 17] Favorites ----------- Power Light Nuclear Core Engine Ion Engine Power Core Light Nuclear Core Propulsion Wheel Wheel Wheel Utility Heat Sink Device Heat Sink Processor Signal Interpreter Weapon Assault Rifle Ballistic Gun Assault Rifle Launcher Rocket Launcher Build | -11 -10 -10 -10 -9 ------- Run | Scr Mat Min Exi Min Slots Evolved 5 | 5 . . . . Power . | . . . . . Propulsion 1 | 1 . . . . Utility 2 | 2 . . . . Weapon 2 | 2 . . . . Parts Attached 17 | 6 9 . 2 . Power 2 | 1 1 . . . Engine 1 | 1 . . . . Core 1 | . 1 . . . Reactor . | . . . . . Propulsion 4 | 2 2 . . . Treads . | . . . . . Leg . | . . . . . Wheel 4 | 2 2 . . . Hover . | . . . . . Flight . | . . . . . Utility 5 | . 4 . 1 . Device 3 | . 3 . . . Storage . | . . . . . Processor 2 | . 1 . 1 . Hackware . | . . . . . Protection . | . . . . . Artifact . | . . . . . Weapon 6 | 3 2 . 1 . Energy Gun . | . . . . . Energy Cannon . | . . . . . Ballistic Gun 5 | 3 2 . . . Ballistic Cannon . | . . . . . Launcher 1 | . . . 1 . Special Weapon . | . . . . . Impact Weapon . | . . . . . Slashing Weapon . | . . . . . Piercing Weapon . | . . . . . Special Melee Weapon . | . . . . . Unidentified Prototypes 1 | . . . 1 . Parts Lost . | . . . . . Power . | . . . . . Propulsion . | . . . . . Utility . | . . . . . Weapon . | . . . . . Highest Loss Streak . | . . . . . To Critical Strikes . | . . . . . Average Slot Usage (%) 97 | . 93 100 100 100 Core 10 | . 9 11 11 11 Wheel 21 | . 21 22 22 22 Device 21 | . 26 22 19 11 Processor 8 | . . 11 13 22 Ballistic Gun 30 | . 32 33 30 22 Launcher 2 | . . . 2 11 Naked Turns . | . . . . . Heaviest Build 16 | 10 15 14 16 14 Greatest Support 20 | 20 20 20 20 20 Greatest Overweight (x) 3 | 3 1 . . . Average Overweight (x) . | . . . . . Largest Inventory Capacity 2 | 1 1 2 2 2 Average Capacity 1 | 1 1 1 2 2 Most Carried 2 | . 1 2 2 2 Average Carried 1 | . . 1 1 2 Final Capacity 2 | 1 1 2 2 2 Final Carried 2 | . 1 2 2 2 Class Distribution -------------------- 46% | Gunner 43% | Skirmisher 10% | Mutant Dominant Class ---------------- Gunner | -10/Materials Skirmisher | -10/Mines Skirmisher | -10/Exiles Mutant | -9/Mines Resources | -11 -10 -10 -10 -9 ----------- Run | Scr Mat Min Exi Min Matter Collected 577 | 248 263 . . 66 Remotely . | . . . . . Salvage Created 416 | . 353 . . 63 Parts 33 | . 28 . . 5 Haulers Intercepted 2 | . 2 . . . Recyclers Shooed 1 | . 1 . . . Parts Field Recycled . | . . . . . Retrieved Matter . | . . . . . Parts Self-Destructed . | . . . . . Prevented . | . . . . . Kills | -11 -10 -10 -10 -9 ------- Run | Scr Mat Min Exi Min Combat Hostiles Destroyed 29 | . 9 . . 20 Guns 10 | . 9 . . 1 AOE 19 | . . . . 19 Classes Destroyed 8 | . 6 . . 2 Builder 1 | . . . . 1 Tunneler 1 | . 1 . . . Hauler 2 | . 2 . . . Recycler 1 | . 1 . . . Watcher 2 | . 2 . . . Swarmer 6 | . 6 . . . Grunt 3 | . 3 . . . Assembled 20 | . . . . 20 Best Kill Streak 20 | . 9 . . 20 Combat Bots Only 20 | . 8 . . 20 Max Kills in Single Turn 5 | . 2 . . 5 Gunslinging . | . . . . . Exploded 5 | . . . . 5 Melee . | . . . . . Uniques/NPCs Destroyed . | . . . . . Combat | -11 -10 -10 -10 -9 -------- Run | Scr Mat Min Exi Min Damage Taken 1024 | . 129 . . 895 Core 808 | . 100 . . 708 Absorbed by Shields 44 | . 44 . . . Redirected to Core 696 | . 76 . . 620 Core Remaining (%) 100 | 100 . . . . Volleys Fired 37 | . 23 . . 14 Largest 3 | . 3 . . 2 Hottest 60 | . 60 . . 40 Shots Fired 90 | . 69 . . 21 Gun 83 | . 69 . . 14 Cannon . | . . . . . Launcher 7 | . . . . 7 Special . | . . . . . Kinetic 83 | . 69 . . 14 Thermal . | . . . . . Explosive 7 | . . . . 7 Electromagnetic . | . . . . . Robot Hit Streak 13 | . 13 . . 6 Robot Miss Streak 3 | . 3 . . 1 Penetration Max . | . . . . . Secondary Targets 5 | . 4 . . 1 Max Gunslinging Chain 1 | . 1 . . 1 Shots Hit Robots 61 | . 46 . . 15 Core Hits 60 | . 23 . . 37 Critical Kills . | . . . . . Critical Parts Destroyed . | . . . . . Critical Strikes . | . . . . . Melee Attacks . | . . . . . Impact . | . . . . . Slashing . | . . . . . Piercing . | . . . . . Sneak Attacks . | . . . . . Combat Hostiles . | . . . . . Follow-up Attacks . | . . . . . Damage Inflicted 1979 | . 612 . . 1367 Guns 764 | . 612 . . 152 Cannons . | . . . . . Explosions 1215 | . . . . 1215 Melee . | . . . . . Ramming . | . . . . . Kinetic 764 | . 612 . . 152 Thermal . | . . . . . Explosive 1215 | . . . . 1215 Electromagnetic . | . . . . . Impact . | . . . . . Slashing . | . . . . . Piercing . | . . . . . Highest Corruption . | . . . . . Average Corruption . | . . . . . Corruption Purged . | . . . . . Corruption Blocked . | . . . . . Overload Shots . | . . . . . Overflow Damage 37 | . . . . 37 Projectiles . | . . . . . Explosions 37 | . . . . 37 Melee . | . . . . . Knockbacks . | . . . . . Impact . | . . . . . Kinetic . | . . . . . Secondary . | . . . . . Self-Inflicted Damage 45 | . . . . 45 Shots 2 | . . . . 2 Rammed . | . . . . . Targets Rammed . | . . . . . Kicked . | . . . . . Crushed . | . . . . . Highest Temperature . | . . . . . Average Temperature . | . . . . . Received Heat Transfer 164 | . 44 . . 120 Siege Activations . | . . . . . Robots Corrupted . | . . . . . Combat Hostiles . | . . . . . Parts Fried . | . . . . . Impact Corruptions . | . . . . . Robots Melted . | . . . . . Combat Hostiles . | . . . . . Parts Melted . | . . . . . Heat Transferred . | . . . . . Parts Sabotaged . | . . . . . Parts Stolen . | . . . . . Parts Stripped . | . . . . . Power Chain Reactions . | . . . . . Missiles Intercepted . | . . . . . Alert | -11 -10 -10 -10 -9 ------- Run | Scr Mat Min Exi Min Peak Influence 244 | . 244 30 . 77 Initial 30 | . . 30 . . Average 108 | . 149 30 . 57 Maximum Alert Level 1 | . 1 . . . Low Security (%) 67 | 100 48 100 . 100 Level 1 32 | . 51 . . . Level 2 . | . . . . . Level 3 . | . . . . . Level 4 . | . . . . . Level 5 . | . . . . . High Security . | . . . . . Max Security . | . . . . . Squads Dispatched 1 | . 1 . . . Investigation 1 | . 1 . . . Extermination . | . . . . . Reinforcement . | . . . . . Assault . | . . . . . Garrison . | . . . . . Intercept . | . . . . . Searches Triggered . | . . . . . Construction Impeded . | . . . . . Haulers Reinforced . | . . . . . Active Scanning Responses . | . . . . . Cargo Convoy Interrupts . | . . . . . Stealth | -11 -10 -10 -10 -9 --------- Run | Scr Mat Min Exi Min Distress Signals . | . . . . . Communications Jammed . | . . . . . Distress Signals . | . . . . . Times Spotted 34 | . 11 . . 23 Peak Tracking Total 20 | . 6 . . 20 Tactical Retreats 1 | . . . . 1 Traps | -11 -10 -10 -10 -9 ------- Run | Scr Mat Min Exi Min Traps Triggered 1 | . 1 . . . Indirectly . | . . . . . Trap Hack Attempts . | . . . . . Triggered . | . . . . . Disarmed . | . . . . . Reprogrammed . | . . . . . Reused . | . . . . . Traps Extracted . | . . . . . Installed . | . . . . . Triggered . | . . . . . Exploded 1 | . . . 1 . Machines | -11 -10 -10 -10 -9 ---------- Run | Scr Mat Min Exi Min Machines Disabled 1 | . . . . 1 Max in Single Turn 1 | . . . . 1 Machines Sabotaged . | . . . . . Garrisons Compromised . | . . . . . Overloaded Fab Kills . | . . . . . Hacking | -11 -10 -10 -10 -9 --------- Run | Scr Mat Min Exi Min Machines Accessed 9 | . 5 . 4 . Terminals 4 | . 4 . . . Fabricators . | . . . . . Repair Stations . | . . . . . Recycling Units 1 | . 1 . . . Scanalyzers . | . . . . . Garrison Access . | . . . . . Total Hacks 31 | . 10 . 21 . Successful 26 | . 5 . 21 . Failed 5 | . 5 . . . Catastrophic . | . . . . . Database Lockouts . | . . . . . Manual 7 | . 6 . 1 . Terminals 8 | . 8 . . . Fabricators . | . . . . . Repair Stations . | . . . . . Recycling Units 2 | . 2 . . . Scanalyzers . | . . . . . Garrison Access . | . . . . . Terminal Hacks 23 | . 2 . 21 . Record 21 | . . . 21 . Robot Analysis 1 | . 1 . . . Recall Investigation 1 | . 1 . . . Fabricator Hacks . | . . . . . Repair Station Hacks . | . . . . . Recycling Unit Hacks 2 | . 2 . . . Report Inventory 1 | . 1 . . . Retrieve Components 1 | . 1 . . . Scanalyzer . | . . . . . Garrison Access Hacks . | . . . . . Unauthorized Hacks 1 | . 1 . . . Terminals 1 | . 1 . . . Botnet 1 | . 1 . . . Fabricators . | . . . . . Repair Stations . | . . . . . Recycling Units . | . . . . . Scanalyzers . | . . . . . Garrison Access . | . . . . . Data Cores Recovered . | . . . . . Used . | . . . . . Hacking Detections 4 | . 4 . . . Full Trace Events 1 | . 1 . . . Feedback Events . | . . . . . Feedback Blocked . | . . . . . Robot Schematics Acquired . | . . . . . Robots Built . | . . . . . Authchips . | . . . . . Time . | . . . . . Total Robot Build Rating . | . . . . . Part Schematics Acquired . | . . . . . Parts Built . | . . . . . Authchips . | . . . . . Time . | . . . . . Total Part Build Rating . | . . . . . Parts Repaired . | . . . . . Time . | . . . . . Parts Recycled . | . . . . . Recycled Matter . | . . . . . Retrieved Matter . | . . . . . Retrieved Components 1 | . 1 . . . Parts Scanalyzed . | . . . . . Part Schematics Acquired . | . . . . . Parts Damaged . | . . . . . Bothacking | -11 -10 -10 -10 -9 ------------ Run | Scr Mat Min Exi Min Used RIF Installer . | . . . . . Robots Hacked . | . . . . . Non-combat . | . . . . . Combat . | . . . . . Robot Hacks Applied . | . . . . . Relay Couplers Released . | . . . . . Fabnet Peak Effective % . | . . . . . Robots Rewired . | . . . . . Allies Hacked . | . . . . . Hacks Repelled . | . . . . . Allies | -11 -10 -10 -10 -9 -------- Run | Scr Mat Min Exi Min Total Allies . | . . . . . Largest Group . | . . . . . Highest-Rated Group . | . . . . . Highest-Rated Ally . | . . . . . Total Orders . | . . . . . Ally Attacks . | . . . . . Total Damage . | . . . . . Kills . | . . . . . Allies Corrupted . | . . . . . Allies Melted . | . . . . . Intel | -11 -10 -10 -10 -9 ------- Run | Scr Mat Min Exi Min Robot Analysis Total 1 | . 1 . . . Derelict Logs Recovered 1 | . . . . 1 Drone Launches . | . . . . . Drone Recoveries . | . . . . . Exploration | -11 -10 -10 -10 -9 ------------- Run | Scr Mat Min Exi Min Turns Passed 1441 | 74 599 79 484 205 Spaces Moved 1404 | 69 446 95 581 213 Core 7 | 7 . . . . Treads . | . . . . . Legs . | . . . . . Wheels 1397 | 62 446 95 581 213 Hover . | . . . . . Flight . | . . . . . Fastest Speed 50 | 50 80 80 80 80 Average Speed 80 | 82 80 80 80 80 Slowest Speed 200 | 200 95 80 80 80 Overloaded Moves . | . . . . . Propulsion Burnouts . | . . . . . Robots Hopped . | . . . . . Cave-ins Triggered . | . . . . . Exploration Rate (%) 42 | 4 67 15 91 33 Regions Visited 4 Branch Regions 3 Pre-discovered Areas 2 | . . . 1 1 Known Exits Taken 3 | . 1 1 1 . Unknown Exits Taken 1 | 1 . . . . Scrap Searched 2 | . . . . 2 Spaces Dug . | . . . . . Terrain Destroyed 27 | . . . . 27 Melee . | . . . . . Projectile . | . . . . . AOE 27 | . . . . 27 Terrain Rammed . | . . . . . Walls Destroyed . | . . . . . Machines Disabled . | . . . . . Actions | -11 -10 -10 -10 -9 --------- Run | Scr Mat Min Exi Min Total 1640 | 82 633 97 600 228 Wait 165 | 8 140 2 14 1 Move 1400 | 68 445 94 580 213 Hop . | . . . . . Pick Up 5 | . 2 1 2 . Fast Attach 14 | 6 8 . . . Attach 1 | . . . 1 . Detach . | . . . . . Swap 2 | . 1 . 1 . Drop 7 | . 5 . 2 . Fire 37 | . 23 . . 14 Melee . | . . . . . Ram . | . . . . . Kick . | . . . . . Crush . | . . . . . Escape Stasis . | . . . . . Rewire . | . . . . . Trap . | . . . . . Miscellaneous 9 | . 9 . . . Route ------- -11/Scrapyard -10/Materials (discovered 3 exits: *Mat x2 / *Min) -10/Mines -10/Exiles -9/Mines History --------- Turn | Location | Event 1 | -11/Scrapyard | Upgraded with Propulsion slot (x1) 1 | -11/Scrapyard | Upgraded with Utility slot (x2) 1 | -11/Scrapyard | Upgraded with Weapon slot (x2) 20 | -11/Scrapyard | Discovered new exit (range 14) 75 | -11/Scrapyard | Entered Materials 188 | -10/Materials | Destroyed 8 combat bots 306 | -10/Materials | Build established: Gunner 456 | -10/Materials | Discovered new exit (range 13) 555 | -10/Materials | Discovered new exit (range 8) 605 | -10/Materials | Discovered new exit (range 3) 631 | -10/Materials | Identified exit to Materials 668 | -10/Materials | Identified exit to Mines 674 | -10/Materials | Entered Mines 676 | -10/Mines | Reached level 2 714 | -10/Mines | Received a Rocket Launcher from a helpful Derelict 749 | -10/Mines | Deemed a non-threat by the Exiles lab entrance 750 | -10/Mines | Discovered new exit (range 5) 752 | -10/Mines | Identified exit to Exiles 753 | -10/Mines | Entered Exiles 774 | -10/Exiles | Met 8R-AWN 787 | -10/Exiles | Met EX-HEX 822 | -10/Exiles | Met EX-DEC 859 | -10/Exiles | Visited The Gauntlet 964 | -10/Exiles | Build established: Skirmisher 982 | -10/Exiles | Discovered new exit (range 10) 1032 | -10/Exiles | Learned location of Zion (-7) 1049 | -10/Exiles | Met EX-BIN 1058 | -10/Exiles | Aligned with FarCom system 1058 | -10/Exiles | Given EX-Vault access code 1116 | -10/Exiles | Opened EX-Vault 1140 | -10/Exiles | Found Prototype Processor 1141 | -10/Exiles | Identified Modified TNC 1154 | -10/Exiles | Exiles lab attacked by MAIN.C 1236 | -10/Exiles | Identified exit to Mines 1237 | -10/Exiles | Left Exiles lab with Modified TNC 1237 | -10/Exiles | Entered Mines 1238 | -9/Mines | Assembled infested the area 1282 | -9/Mines | Core integrity fell below 50% 1310 | -9/Mines | Destroyed 20 combat bots 1438 | -9/Mines | Core integrity fell below 20% 1442 | -9/Mines | Destroyed by D-53 Grenadier with Mini Grenade Launcher Last Messages --------------- 01294_ The unstable cave ceiling collapses. 01300_ Acquired 1 matter. 01301_ The unstable cave ceiling collapses. 01334_ Searching scrap... 01334_ Found Lgt. Treads. 01334_ Found 34 Matter. 01337_ Acquired 34 matter. 01386_ Searching scrap... 01386_ Found Field Recycling Unit. 01386_ Found Tractor Beam. 01386_ Found 13 Matter. 01387_ Acquired 13 matter. 01389_ Acquired 18 matter. 01394_ Acquired derelict log, extracted data. World map confirmed: -7/Zion. 01427_ C-30 ARC bursts open, deploying its payload. 01427_ D-53 Grenadier unfolds itself. 01429_ U-05 Engineer destroyed. 01433_ T-07 Excavator destroyed. 01439_ The unstable cave ceiling collapses. Map ----- +----------------------------------------------------+ | ???????????????????????????????????????? | | ???????????????????????????????????????? | | ????????????????????????????####???????? | | ???????????????????????????## ##??????? | | ??????????????????????????## #??????? | | ?????????????????????????## #??????? | | ?????????????????????????# #???????? | | ?????????????????????????# ##???????? | | ?????????????????????????## #????????? | | ??????????????????????????# #????????? | | ?????????????????????????## #????????? | | ????????????????????????## ##???????? | | ????????????????????????# ##??????? | | ????????????????????????# #??????? | | ????????????????????????## #??????? | | ????????????????????????## #??????? | | ????????????????????????# ##??????? | | ????????????????????????#" ##???????? | | ????????????????????????# ##???????? | | ????????????????????????## ##??????? | | ???????????????###????##### #??????? | | ????????? ### ??## #??????? | | ????????? % !=## #??????? | | ???????? r !%*d #??????? | | ?????????? = d #???????? | | ?????????????????## @ #???????? | | ??????????????????## #??????? | | ???????????????????## #??????? | | ????????????????????## ! ##??????? | | ?????????????????????## # ##???????? | | ??????????????????????###### !#????????? | | ??????????????????????????## #????????? | | ?????????????????????????## ##???????? | | ????????????????????????## #???????? | | ?????????????????######## #???????? | | ?????????????????# ##???????? | | ?????????????????# ##????????? | | ?????????????????# ######## #?????????? | | ???????????####### ##?????# #######???? | | ???????????# ##????# #???? | | ???????????# #????# ##### #???? | | ???????????# #### #????# #???# #???? | | ???????????# #??# #????# #???# #???? | | ???????????# #??# ##???# #???# #???? | | ???????????# #??# #???# #???# #???? | | ???????????# #??# = #???# #???# #???? | | ???????????# #??## ##???# ##??# #???? | | ???????????# #???#####????# ##?# #???? | | ???????????# #????????????# ### #???? | | ???????????# #????????????# ##??? | +----------------------------------------------------+ Best States ------------- Heat Dissipation 69 Energy Generation 19 Energy Capacity 250 Matter Stores 300 Matter Capacity 300 Sight Range 16 Robot Scan Range 14 Terrain Scan Density 10 Resistance: KI 20 Resistance: TH 20 Resistance: EX 20 Resistance: EM 20 Resistance: I 20 Resistance: S 20 Resistance: P 20 Evasion (%) 44 Offensive Hacking 10 Item Schematics ----------------- None Robot Schematics ------------------ None Fabricated ------------ Nothing Alien Tech Used ----------------- None Achievements -------------- Exterminator Killing Spree Quick And Dirty Challenges ------------ None RPGLIKE | -11 -10 -10 -10 -9 --------- Run | Scr Mat Min Exi Min Levels Raised 1 | . . 1 . . XP Earned 6958 | 4000 1190 500 350 918 XP Spent 5405 | 3970 . 1435 . . Upgrades 21 | 11 . 10 . . Propulsion Slot 1 | 1 . . . . Utility Slot 2 | 2 . . . . Weapon Slot 2 | 2 . . . . Core Integrity 2 | . . 2 . . Heat Dissipation 4 | 4 . . . . Energy Generation 1 | 1 . . . . Inventory Capacity 2 | 1 . 1 . . Sensor Range 7 | . . 7 . . Protomatter Created 150 | . 111 . . 39 Integrity Restored 172 | . 172 . . . Core 100 | . 100 . . . Parts 72 | . 72 . . . Protomatter Decayed 24 | . 24 . . . Game ------ Seed FusionExperimentalCannon Manual? 0 Play Time 00:28:05 Cumulative 19.8 hours Start 2022.03.25 @ 19:30:13 End 2022.03.25 @ 20:02:18 Sessions 1 Manual Loads 0 Difficulty Adventurer Special Mode Winter2019/RPGLIKE Game No. 11 Rogue 6 Adventurer 1 Explorer 4 Win Type - Total 1 Types 1/0/0/0/0/0/0/0/0 Lore% 21 Gallery% 25 Achievement% 34 Wizard Run 0 Options --------- ASCII 0 Keyboard 0 Movement Mouse Keybinds 0 Fullscreen 1 Font 18/Smallcaps Map View 76x50 Tactical HUD 1 Map Filters NONE Filters NONE Steam 1 RUN: 5c362684-e288-4acf-804c-e39ab0869072